Cogmind - Beta 14 @@@ ROGUE MODE // 2024.11.12 @ 01:31:03 Player: MarKhan Result: Destroyed by G-47 Trooper with Particle Gun Performance ------------- Evolutions (3) 1500 Regions Visited (9) 1800 Robots Destroyed (101) 505 Value Destroyed (1734) 1734 Prototype IDs (30) 600 Alien Tech Used (0) 0 Bonus (551) 551 TOTAL SCORE: 6690 Bonus ------- High Alert Combat Kills 92 Follower Combat Kills 159 Aligned with FarCom 300 Cogmind --------- Core Integrity 0/700 Matter 200/300 Energy 43/100 System Corruption 0% Temperature Cool (9) Movement Core (50) Location -7/Storage Parts ------- > --- POWER (1) -------- (None) > --- PROPULSION (2) --- (None) > --- UTILITY (8) ------ Visual Processing Unit Core Analyzer > --- WEAPON (2) ------- (None) > --- INVENTORY (5) ---- Improved Light Armor Plating PSU Rigger Advanced Assault Cannon Mini Grenade Launcher Improved Grenade Launcher Peak State ------------ > --- POWER ------------ (None) > --- PROPULSION ------- (None) > --- UTILITY ---------- Weight Redist. System Visual Processing Unit Advanced Terrain Scan Processor Core Analyzer Microactuators Microactuators PSU Rigger > --- WEAPON ----------- Heavy Hammer > --- INVENTORY -------- Improved Light Armor Plating Advanced Assault Cannon Mini Grenade Launcher Improved Grenade Launcher [Rating: 31] Favorites ----------- Power Light Ion Engine Engine Light Ion Engine Power Core Micro Nuclear Core Propulsion None Utility Weight Redist. System Device Weight Redist. System Processor Visual Processing Unit Hackware Authchip [Device] Protection Improved Light Armor Plating Weapon Mace Energy Gun Particle Gun Energy Cannon Advanced Beam Cannon Ballistic Gun Assault Rifle Launcher Grenade Launcher Impact Weapon Mace Build | -11 -10 -10 -9 -9 -9 -8 -8 -7 -7 ------- Run | Yrd Mat Min Mat Min Exi Min Mat Fac Sto Slots Evolved 6 | . . . 2 . . . 2 2 . Power . | . . . . . . . . . . Propulsion . | . . . . . . . . . . Utility 6 | . . . 2 . . . 2 2 . Weapon . | . . . . . . . . . . Parts Attached 68 | 2 10 2 23 . . . 21 3 7 Power 14 | . 2 . 5 . . . 5 . 2 Engine 12 | . 2 . 5 . . . 4 . 1 Core 2 | . . . . . . . 1 . 1 Reactor . | . . . . . . . . . . Propulsion . | . . . . . . . . . . Treads . | . . . . . . . . . . Leg . | . . . . . . . . . . Wheel . | . . . . . . . . . . Hover . | . . . . . . . . . . Flight . | . . . . . . . . . . Utility 22 | . 2 2 6 . . . 4 3 5 Device 16 | . 1 1 5 . . . 3 1 5 Storage . | . . . . . . . . . . Processor 4 | . 1 . 1 . . . . 2 . Hackware 1 | . . 1 . . . . . . . Protection 1 | . . . . . . . 1 . . Artifact . | . . . . . . . . . . Weapon 32 | 2 6 . 12 . . . 12 . . Energy Gun 9 | . 4 . . . . . 5 . . Energy Cannon 3 | . . . 2 . . . 1 . . Ballistic Gun 3 | 2 . . . . . . 1 . . Ballistic Cannon . | . . . . . . . . . . Launcher 3 | . 2 . 1 . . . . . . Special Weapon . | . . . . . . . . . . Impact Weapon 14 | . . . 9 . . . 5 . . Slashing Weapon . | . . . . . . . . . . Piercing Weapon . | . . . . . . . . . . Special Melee Weapon . | . . . . . . . . . . Unidentified Prototypes 2 | . . . . . . . 2 . . Corrupted Parts 1 | . . 1 . . . . . . . System Corruption 3 | . . 3 . . . . . . . Parts Lost 16 | . . . 3 . . 1 2 . 10 Power 4 | . . . 2 . . 1 . . 1 Propulsion . | . . . . . . . . . . Utility 10 | . . . 1 . . . 2 . 7 Weapon 2 | . . . . . . . . . 2 Highest Loss Streak 7 | . . . 1 . . 1 2 . 7 To Critical Strikes . | . . . . . . . . . . Average Slot Usage (%) 68 | . 60 71 71 77 77 66 68 62 46 Engine 9 | . 13 14 10 11 11 . 8 7 1 Device 26 | . 13 26 26 33 33 33 27 23 17 Processor 9 | . 4 1 11 11 11 11 9 16 21 Hackware 1 | . . . 4 . . . . . . Protection 2 | . . . . . . . 5 . . Energy Gun 4 | . 25 28 . . . . 1 . . Impact Weapon 14 | . . . 17 22 22 22 16 15 5 Peak Build Rating 31 | 2 9 11 14 12 13 13 25 22 31 Average Rating 13 | 1 7 8 11 12 12 12 16 18 19 On Entrance 11 | . 2 8 11 12 12 13 12 19 22 Naked Turns . | . . . . . . . . . . Heaviest Build 13 | 3 9 10 12 9 9 6 13 11 12 Greatest Support 9 | 3 9 9 9 9 9 9 9 9 9 Greatest Overweight (x) 3 | . . 1 1 . . . 3 1 1 Average Overweight (x) . | . . . . . . . . . . Largest Inventory Capacity 5 | 5 5 5 5 5 5 5 5 5 5 Average Capacity 5 | 5 5 5 5 5 5 5 5 5 5 Most Carried 5 | 5 5 5 5 5 5 5 5 5 5 Average Carried 4 | 2 4 5 4 5 4 5 4 4 4 Final Capacity 5 | 5 5 5 5 5 5 5 5 5 5 Final Carried 5 | 5 5 5 5 5 5 5 5 5 5 Class Distribution -------------------- 89% | Mutant 5% | Commander-Mutant 4% | Scout Dominant Class ---------------- Mutant | -10/Materials Mutant | -10/Mines Mutant | -9/Materials Mutant | -9/Mines Mutant | -9/Exiles Mutant | -8/Mines Mutant | -8/Materials Scout | -7/Factory Mutant | -7/Storage Resources | -11 -10 -10 -9 -9 -9 -8 -8 -7 -7 ----------- Run | Yrd Mat Min Mat Min Exi Min Mat Fac Sto Matter Collected 1142 | 420 268 22 250 . . . 155 21 6 Remotely . | . . . . . . . . . . Salvage Created 3332 | 217 171 141 1479 155 . . 981 21 167 Parts 167 | 17 17 12 64 10 . . 41 1 5 Haulers Intercepted 11 | . 2 . 6 . . . 1 . 2 Recyclers Shooed 2 | 1 . . . . . . 1 . . Parts Field Recycled . | . . . . . . . . . . Retrieved Matter . | . . . . . . . . . . Parts Self-Destructed . | . . . . . . . . . . Prevented . | . . . . . . . . . . Kills | -11 -10 -10 -9 -9 -9 -8 -8 -7 -7 ------- Run | Yrd Mat Min Mat Min Exi Min Mat Fac Sto Combat Hostiles Destroyed 40 | . 6 1 19 4 . . 9 . 1 Melee 21 | . . . 11 3 . . 6 . 1 Guns 2 | . 1 1 . . . . . . . AOE 8 | . 5 . 3 . . . . . . Classes Destroyed 10 | 3 3 . 4 . . . . . . Worker 8 | 1 1 . 5 . . . 1 . . Builder 7 | . . . 4 1 . . 2 . . Tunneler 11 | 5 . 3 . 1 . . 1 1 . Hauler 11 | . 2 . 6 . . . 1 . 2 Recycler 13 | 1 . 1 4 1 . . 6 . . Operator 3 | . . . 1 . . . 1 . 1 Watcher 8 | . 2 . 5 . . . 1 . . Swarmer 15 | . 6 1 4 4 . . . . . Grunt 17 | . . . 9 . . . 7 . 1 Sentry 8 | . . . 6 . . . 2 . . Best Kill Streak 7 | 5 7 3 7 7 . . 4 1 2 Combat Bots Only 6 | . 6 1 6 4 . . 4 . 1 Max Kills in Single Turn 5 | 1 3 2 5 1 . . 1 1 1 Gunslinging . | . . . . . . . . . . Exploded 3 | . 2 . 3 . . . . . . Melee 1 | . . . 1 1 . . 1 . 1 Uniques/NPCs Destroyed . | . . . . . . . . . . Combat | -11 -10 -10 -9 -9 -9 -8 -8 -7 -7 -------- Run | Yrd Mat Min Mat Min Exi Min Mat Fac Sto Hostile Shots Fired 325 | . 12 2 80 8 . 6 32 . 185 Missed 119 | . 5 1 23 4 . . 7 . 79 Damage Taken 2533 | . 53 9 768 34 . 98 426 . 1145 Core 1310 | . 20 9 344 9 . 30 186 . 712 Absorbed by Shields . | . . . . . . . . . . Regen/Repaired (Parts) 90 | . . . 27 . . . 63 . . Core Remaining (%) 64 | 100 . 88 . . . 4 66 . . Volleys Fired 77 | 25 15 6 16 . . . 15 . . Largest 2 | 2 2 2 1 . . . 2 . . Hottest 130 | 40 130 130 68 . . . 122 . . Shots Fired 120 | 50 24 12 16 . . . 18 . . Gun 92 | 50 16 12 . . . . 14 . . Cannon 19 | . . . 15 . . . 4 . . Launcher 9 | . 8 . 1 . . . . . . Special . | . . . . . . . . . . Kinetic 50 | 50 . . . . . . . . . Thermal 61 | . 16 12 15 . . . 18 . . Explosive 9 | . 8 . 1 . . . . . . Electromagnetic . | . . . . . . . . . . Robot Hit Streak 18 | 18 7 4 3 . . . 10 . . Robot Miss Streak 6 | 6 2 1 2 . . . 2 . . Penetration Max . | . . . . . . . . . . Secondary Targets . | . . . . . . . . . . Shots Hit Robots 190 | 31 8 9 71 10 . 1 46 1 13 Core Hits 87 | 11 19 5 30 3 . . 16 . 3 Critical Kills 5 | . . . 3 . . . . . 2 Critical Parts Destroyed 15 | . . . 10 1 . . 3 . 1 Critical Strikes 23 | . 2 . 14 1 . . 3 . 3 Burn 2 | . 2 . . . . . . . . Smash 21 | . . . 14 1 . . 3 . 3 Melee Attacks 189 | . . . 89 11 . 1 65 7 16 Impact 189 | . . . 89 11 . 1 65 7 16 Slashing . | . . . . . . . . . . Piercing . | . . . . . . . . . . Sneak Attacks 34 | . . . 15 4 . 1 10 1 3 Combat Hostiles 4 | . . . 1 . . 1 2 . . Follow-up Attacks 17 | . . . 10 1 . . 2 . 4 Damage Inflicted 7084 | 332 570 171 2933 607 . 54 1734 59 624 Guns 806 | 332 143 171 . . . . 160 . . Cannons 265 | . . . 184 . . . 81 . . Explosions 621 | . 427 . 194 . . . . . . Melee 5391 | . . . 2555 607 . 54 1493 59 623 Ramming 1 | . . . . . . . . . 1 Kinetic 332 | 332 . . . . . . . . . Thermal 739 | . 143 171 184 . . . 241 . . Explosive 621 | . 427 . 194 . . . . . . Electromagnetic . | . . . . . . . . . . Impact 5391 | . . . 2555 607 . 54 1493 59 623 Slashing . | . . . . . . . . . . Piercing . | . . . . . . . . . . Highest Corruption 3 | . . 3 . . . . . . . Average Corruption 3 | . . 3 . . . . . . . Corruption Purged . | . . . . . . . . . . Corruption Blocked . | . . . . . . . . . . Overload Shots . | . . . . . . . . . . Overflow Damage 1495 | . 30 . 804 224 . 14 279 19 125 Projectiles . | . . . . . . . . . . Explosions 30 | . 30 . . . . . . . . Melee 1465 | . . . 804 224 . 14 279 19 125 Knockbacks 19 | . . . 7 2 . 1 7 1 1 Impact 19 | . . . 7 2 . 1 7 1 1 Kinetic . | . . . . . . . . . . Secondary . | . . . . . . . . . . Self-Inflicted Damage . | . . . . . . . . . . Shots . | . . . . . . . . . . Rammed 1 | . . . . . . . . . 1 Targets Rammed 1 | . . . . . . . . . 1 Kicked . | . . . . . . . . . . Crushed . | . . . . . . . . . . Highest Temperature 187 | . 138 187 66 . . . 126 . 5 Average Temperature 44 | . 45 77 23 . . . 32 . 5 Received Heat Transfer 1128 | . . . 339 . . 54 243 . 492 Siege Activations . | . . . . . . . . . . Robots Corrupted 21 | . . . 11 2 . . 6 1 1 Combat Hostiles 9 | . . . 5 1 . . 3 . . Parts Fried 39 | . . . 17 4 . . 13 1 4 Impact Corruptions 56 | . . . 31 7 . 1 12 1 4 Robots Melted . | . . . . . . . . . . Combat Hostiles . | . . . . . . . . . . Parts Melted 1 | . . . 1 . . . . . . Heat Transferred 1665 | . 481 407 333 . . . 444 . . Parts Sabotaged . | . . . . . . . . . . Parts Stolen . | . . . . . . . . . . Parts Stripped . | . . . . . . . . . . Power Chain Reactions . | . . . . . . . . . . Alert | -11 -10 -10 -9 -9 -9 -8 -8 -7 -7 ------- Run | Yrd Mat Min Mat Min Exi Min Mat Fac Sto Peak Influence 619 | 35 344 173 619 347 . 50 274 194 288 Initial 227 | . 22 133 66 227 . . 19 23 87 Average 225 | 16 245 155 438 282 . 19 110 100 152 Maximum Alert Level 2 | . 1 . 2 1 . . 1 . 1 Low Security (%) 55 | 100 20 100 8 . . 100 85 100 79 Level 1 24 | . 79 . 21 100 . . 14 . 20 Level 2 19 | . . . 69 . . . . . . Level 3 . | . . . . . . . . . . Level 4 . | . . . . . . . . . . Level 5 . | . . . . . . . . . . High Security . | . . . . . . . . . . Max Security . | . . . . . . . . . . Squads Dispatched 13 | . . . 3 . . . 1 1 8 Investigation 4 | . . . 1 . . . . . 3 Extermination . | . . . . . . . . . . Reinforcement 6 | . . . 2 . . . 1 . 3 Assault 1 | . . . . . . . . 1 . Garrison 2 | . . . . . . . . . 2 Intercept . | . . . . . . . . . . Searches Triggered . | . . . . . . . . . . Construction Impeded . | . . . . . . . . . . Haulers Reinforced . | . . . . . . . . . . Active Scanning Responses . | . . . . . . . . . . Cargo Convoy Interrupts . | . . . . . . . . . . Stealth | -11 -10 -10 -9 -9 -9 -8 -8 -7 -7 --------- Run | Yrd Mat Min Mat Min Exi Min Mat Fac Sto Distress Signals 12 | . . 1 4 1 . . 4 . 2 Communications Jammed . | . . . . . . . . . . Distress Signals . | . . . . . . . . . . Times Spotted 100 | . 9 1 34 5 . 4 18 1 28 Peak Tracking Total 18 | . 3 1 6 3 . 3 7 1 18 Tactical Retreats 10 | . . . 2 1 . 2 1 . 4 Traps | -11 -10 -10 -9 -9 -9 -8 -8 -7 -7 ------- Run | Yrd Mat Min Mat Min Exi Min Mat Fac Sto Traps Triggered . | . . . . . . . . . . Indirectly . | . . . . . . . . . . Trap Hack Attempts . | . . . . . . . . . . Triggered . | . . . . . . . . . . Disarmed . | . . . . . . . . . . Reprogrammed . | . . . . . . . . . . Reused . | . . . . . . . . . . Traps Extracted . | . . . . . . . . . . Installed . | . . . . . . . . . . Triggered . | . . . . . . . . . . Objects Rigged 7 | . . . . . . . 2 . 5 Exploded 6 | . . . . . . . 1 . 5 Machines | -11 -10 -10 -9 -9 -9 -8 -8 -7 -7 ---------- Run | Yrd Mat Min Mat Min Exi Min Mat Fac Sto Machines Disabled 2 | . . . . . . . . 1 1 Max in Single Turn 1 | . . . . . . . . 1 1 Garrison Access 1 | . . . . . . . . 1 . Machines Repaired . | . . . . . . . . . . Machines Dismantled . | . . . . . . . . . . Machines Sabotaged . | . . . . . . . . . . Overloaded Fab Kills . | . . . . . . . . . . Hacking | -11 -10 -10 -9 -9 -9 -8 -8 -7 -7 --------- Run | Yrd Mat Min Mat Min Exi Min Mat Fac Sto Machines Accessed 37 | . 9 . 12 1 1 . 8 3 3 Terminals 26 | . 8 . 8 . . . 5 2 3 Fabricators . | . . . . . . . . . . Repair Stations 3 | . . . 2 . . . 1 . . Recycling Units 4 | . 1 . 2 . . . 1 . . Scanalyzers 1 | . . . . . . . 1 . . Garrison Access 1 | . . . . . . . . 1 . Total Hacks 107 | . 43 . 29 1 1 . 20 6 7 Successful 60 | . 28 . 18 1 1 . 11 . 1 Failed 47 | . 15 . 11 . . . 9 6 6 Catastrophic 9 | . 1 . 2 . . . 1 2 3 Database Lockouts . | . . . . . . . . . . Manual 85 | . 35 . 27 . 1 . 12 6 4 Terminals 86 | . 40 . 22 . . . 13 4 7 Fabricators . | . . . . . . . . . . Repair Stations 6 | . . . 3 . . . 3 . . Recycling Units 9 | . 3 . 4 . . . 2 . . Scanalyzers 2 | . . . . . . . 2 . . Garrison Access 2 | . . . . . . . . 2 . Terminal Hacks 14 | . 8 . 2 1 1 . 1 . 1 Part Schematic 3 | . 1 . 2 . . . . . . Robot Analysis 2 | . 2 . . . . . . . . Prototype ID Bank 3 | . 3 . . . . . . . . Open Door 2 | . . . . 1 . . . . 1 Terminal Index 1 | . 1 . . . . . . . . Maintenance Status 1 | . 1 . . . . . . . . Zone Layout 1 | . . . . . . . 1 . . Derelict Proto ID Bank 1 | . . . . . 1 . . . . Fabricator Hacks . | . . . . . . . . . . Repair Station Hacks 4 | . . . 2 . . . 2 . . Scan Component 2 | . . . 1 . . . 1 . . Repair 2 | . . . 1 . . . 1 . . Recycling Unit Hacks 2 | . 1 . . . . . 1 . . Retrieve Components 2 | . 1 . . . . . 1 . . Scanalyzer 2 | . . . . . . . 2 . . Insert Component 1 | . . . . . . . 1 . . Analyze 1 | . . . . . . . 1 . . Garrison Access Hacks . | . . . . . . . . . . Unauthorized Hacks 38 | . 19 . 14 . . . 5 . . Terminals 33 | . 17 . 11 . . . 5 . . Track 1 | . 1 . . . . . . . . Assimilate 6 | . 4 . 1 . . . 1 . . Botnet 10 | . 5 . 3 . . . 2 . . Operators 4 | . 2 . 1 . . . 1 . . Skim 12 | . 5 . 6 . . . 1 . . Fabricators . | . . . . . . . . . . Repair Stations 1 | . . . 1 . . . . . . Mechanics 1 | . . . 1 . . . . . . Recycling Units 4 | . 2 . 2 . . . . . . Reject 2 | . 1 . 1 . . . . . . Recyclers 2 | . 1 . 1 . . . . . . Scanalyzers . | . . . . . . . . . . Garrison Access . | . . . . . . . . . . Data Cores Recovered . | . . . . . . . . . . Used . | . . . . . . . . . . Hacking Detections 33 | . 9 . 10 . . . 8 3 3 Full Trace Events 4 | . . . 1 . . . . . 3 Feedback Events . | . . . . . . . . . . Feedback Blocked . | . . . . . . . . . . Robot Schematics Acquired . | . . . . . . . . . . Robots Built . | . . . . . . . . . . Authchips . | . . . . . . . . . . Time . | . . . . . . . . . . Total Robot Build Rating . | . . . . . . . . . . Part Schematics Acquired 4 | . 1 . 2 . . . 1 . . Parts Built . | . . . . . . . . . . Authchips . | . . . . . . . . . . Time . | . . . . . . . . . . Total Part Build Rating . | . . . . . . . . . . Parts Repaired 2 | . . . 1 . . . 1 . . Time 58 | . . . 26 . . . 32 . . Parts Recycled . | . . . . . . . . . . Recycled Matter . | . . . . . . . . . . Retrieved Matter . | . . . . . . . . . . Retrieved Components 13 | . 3 . . . . . 10 . . Parts Scanalyzed 1 | . . . . . . . 1 . . Part Schematics Acquired 1 | . . . . . . . 1 . . Parts Damaged . | . . . . . . . . . . Bothacking | -11 -10 -10 -9 -9 -9 -8 -8 -7 -7 ------------ Run | Yrd Mat Min Mat Min Exi Min Mat Fac Sto Used RIF Installer . | . . . . . . . . . . Robots Hacked . | . . . . . . . . . . Non-combat . | . . . . . . . . . . Combat . | . . . . . . . . . . Robot Hacks Applied . | . . . . . . . . . . Relay Couplers Released 2 | . . . . . . . . 2 . Machine Destruction 2 | . . . . . . . . 2 . Fabnet Peak Effective % . | . . . . . . . . . . Robots Rewired . | . . . . . . . . . . Allies Hacked . | . . . . . . . . . . Hacks Repelled . | . . . . . . . . . . Allies | -11 -10 -10 -9 -9 -9 -8 -8 -7 -7 -------- Run | Yrd Mat Min Mat Min Exi Min Mat Fac Sto Total Allies 7 | . 1 3 1 2 . . . . . Largest Group 4 | . 1 4 4 2 2 . . . . Highest-Rated Group 50 | . 10 50 50 47 47 . . . . Highest-Rated Ally 31 | . 10 16 16 31 31 . . . . Total Orders 4 | . . . 4 . . . . . . STAY 2 | . . . 2 . . . . . . FOLLOW 2 | . . . 2 . . . . . . Ally Attacks 46 | . . . 46 . . . . . . Total Damage 460 | . . . 460 . . . . . . Kills 8 | . . . 8 . . . . . . Allies Corrupted . | . . . . . . . . . . Allies Melted . | . . . . . . . . . . Intel | -11 -10 -10 -9 -9 -9 -8 -8 -7 -7 ------- Run | Yrd Mat Min Mat Min Exi Min Mat Fac Sto Robot Analysis Total 2 | . 2 . . . . . . . . Derelict Logs Recovered 2 | . . 1 . 1 . . . . . Drone Launches . | . . . . . . . . . . Drone Recoveries . | . . . . . . . . . . Exploration | -11 -10 -10 -9 -9 -9 -8 -8 -7 -7 ------------- Run | Yrd Mat Min Mat Min Exi Min Mat Fac Sto Turns Passed 4758 | 129 326 328 1296 290 186 31 1793 167 212 Spaces Moved 4406 | 90 496 311 1383 435 369 56 758 284 224 Core 4406 | 90 496 311 1383 435 369 56 758 284 224 Treads . | . . . . . . . . . . Legs . | . . . . . . . . . . Wheels . | . . . . . . . . . . Hover . | . . . . . . . . . . Flight . | . . . . . . . . . . Fastest Speed 50 | 50 50 50 50 50 50 50 50 50 50 Average Speed 62 | 50 50 93 58 50 50 50 84 50 68 Slowest Speed 200 | 50 50 100 100 50 50 50 200 100 100 Overloaded Moves . | . . . . . . . . . . Propulsion Burnouts . | . . . . . . . . . . Robots Hopped . | . . . . . . . . . . Cave-ins Triggered . | . . . . . . . . . . Exploration Rate (%) 49 | 3 68 52 76 90 78 28 33 8 62 Regions Visited 9 Branch Regions 5 Pre-discovered Areas 4 | . 1 . 3 . . . . . . Known Exits Taken 5 | . 1 1 1 . . 1 . 1 . Unknown Exits Taken 4 | 1 . . . 1 1 . 1 . . Scrap Searched 3 | . . . . 2 . 1 . . . Spaces Dug 23 | . . . 7 . . . 15 1 . Terrain Destroyed 63 | . 33 . 14 . . . 15 1 . Melee 23 | . . . 7 . . . 15 1 . Projectile . | . . . . . . . . . . AOE 40 | . 33 . 7 . . . . . . Terrain Rammed . | . . . . . . . . . . Walls Destroyed . | . . . . . . . . . . Machines Disabled . | . . . . . . . . . . Actions | -11 -10 -10 -9 -9 -9 -8 -8 -7 -7 --------- Run | Yrd Mat Min Mat Min Exi Min Mat Fac Sto Total 5986 | 127 551 334 1717 489 370 56 1786 296 260 Wait 1209 | 6 14 15 201 45 . . 921 . 7 Move 4397 | 89 495 310 1382 434 368 55 757 283 224 Hop . | . . . . . . . . . . Pick Up 21 | 5 7 . 5 . 1 . 1 2 . Fast Attach 34 | 2 4 1 7 . . . 14 2 4 Attach 8 | . 2 . 3 . . . 1 . 2 Detach 7 | . 1 1 1 . . . 2 . 2 Swap 26 | . 4 1 13 . . . 6 1 1 Drop 39 | . 9 . 14 . 1 . 11 2 2 Fire 77 | 25 15 6 16 . . . 15 . . Melee 160 | . . . 75 10 . 1 56 6 12 Ram 1 | . . . . . . . . . 1 Kick . | . . . . . . . . . . Crush . | . . . . . . . . . . Escape Stasis . | . . . . . . . . . . Rewire . | . . . . . . . . . . Trap 7 | . . . . . . . 2 . 5 Miscellaneous . | . . . . . . . . . . Route ------- -11/Scrapyard -10/Materials (discovered 5 exits: *Mat x3 / *Min / Sub) -10/Mines -9/Materials (discovered 5 exits: *Mat x3 / *Min x2) -9/Mines (discovered 3 exits: *Mat x2 / *Exi) -9/Exiles (discovered 2 exits: [*Min x2]) -8/Mines -8/Materials -7/Factory -7/Storage (discovered 1 exit: Rec) History --------- Turn | Location | Event 7 | -11/Scrapyard | Discovered new exit (range 15) 130 | -11/Scrapyard | Entered Materials 238 | -10/Materials | Discovered new exit (range 8) 332 | -10/Materials | Discovered new exit (range 11) 333 | -10/Materials | Build established: Mutant 339 | -10/Materials | Learned Recycling recycling unit intel 368 | -10/Materials | Learned location of 1 exit from Recycling 389 | -10/Materials | Learned location of 1 exit from Recycling 398 | -10/Materials | Identified exit to Materials 398 | -10/Materials | Identified exit to Subcaves 400 | -10/Materials | Learned location of 1 exit from Storage 401 | -10/Materials | Loaded intel: 14 trap records 423 | -10/Materials | Identified exit to Mines 428 | -10/Materials | Learned location of Storage (-7) 456 | -10/Materials | Entered Mines 456 | -10/Mines | Accompanied by 1 ally 460 | -10/Mines | Met a Derelict bent on vengeance 475 | -10/Mines | Learned Materials terminal intel 763 | -10/Mines | Assisted by bots powering up and referring to "LRC-V3" 775 | -10/Mines | Discovered exit to Materials (range 6) 784 | -10/Mines | Entered Materials 784 | -9/Materials | Accompanied by 4 allies 784 | -9/Materials | Evolved 2 slots: Utility x2 785 | -9/Materials | Loaded intel: 12 terminal locations 1019 | -9/Materials | Repaired Grenade Launcher? 1281 | -9/Materials | Core integrity fell below 50% 1320 | -9/Materials | Discovered new exit (range 4) 1814 | -9/Materials | Discovered new exit (range 11) 1893 | -9/Materials | Discovered new exit (range 17) 1933 | -9/Materials | Learned location of Zion (-6) 1971 | -9/Materials | Identified exit to Materials 1971 | -9/Materials | Identified exit to Mines 2001 | -9/Materials | Learned 2 Storage zone layouts 2016 | -9/Materials | Core integrity fell below 20% 2031 | -9/Materials | Learned Storage garrison access intel 2058 | -9/Materials | Learned Storage trap positions 2080 | -9/Materials | Entered Mines 2132 | -9/Mines | Discovered exit to Materials (range 11) 2154 | -9/Mines | Met a Derelict who couldn't figure out how to use a Trap Extractor 2293 | -9/Mines | Discovered exit to Materials (range 9) 2326 | -9/Mines | Deemed a non-threat by the Exiles lab entrance 2326 | -9/Mines | Discovered new exit (range 5) 2370 | -9/Mines | Entered Exiles 2370 | -9/Exiles | Accompanied by 2 allies 2377 | -9/Exiles | Discovered new exit (range 16) 2385 | -9/Exiles | Met 8R-AWN 2400 | -9/Exiles | Led the pair of lost Derelicts to a safe place 2411 | -9/Exiles | Met EX-HEX 2426 | -9/Exiles | Met EX-BIN 2432 | -9/Exiles | Aligned with FarCom system 2432 | -9/Exiles | Given EX-Vault access code 2444 | -9/Exiles | Opened EX-Vault 2449 | -9/Exiles | Found PSU Rigger 2462 | -9/Exiles | Warned to stay clear of 0b10 Research branches 2478 | -9/Exiles | Met EX-DEC 2498 | -9/Exiles | Visited The Gauntlet 2551 | -9/Exiles | Discovered new exit (range 14) 2556 | -9/Exiles | Left Exiles lab with PSU Rigger 2556 | -9/Exiles | Entered Mines 2579 | -8/Mines | Discovered exit to Materials (range 16) 2587 | -8/Mines | Entered Materials 2587 | -8/Materials | Evolved 2 slots: Utility x2 2742 | -8/Materials | Repaired Hvy. Hammer 4374 | -8/Materials | Discovered new exit (range 4) 4380 | -8/Materials | Entered Factory 4380 | -7/Factory | Evolved 2 slots: Utility x2 4381 | -7/Factory | Identified exit to Storage 4547 | -7/Factory | Entered Storage 4548 | -7/Storage | Identified exit to Recycling 4550 | -7/Storage | Loaded intel: 11 trap records 4551 | -7/Storage | Loaded intel: 1 garrison access location 4592 | -7/Storage | Garrison activated, responded to threat 4618 | -7/Storage | Core integrity fell below 50% 4700 | -7/Storage | Lost 7 parts (1p4u2w) 4706 | -7/Storage | Core integrity fell below 20% 4759 | -7/Storage | Destroyed by G-47 Trooper with Particle Gun Last Messages --------------- 04652_ Rigged Ion Engine explodes. 04656_ K-01 Serf collects debris. 04669_ Weight Redist. System destroyed. 04676_ U-05 Engineer builds a Wall. 04686_ O-24 Administrator: "IFF HANDSHAKE FAILED. SECURING TERMINAL." 04689_ ALERT: Hostiles spotted, dispatching reinforcements to Terminal S003. 04701_ ALERT: Hostiles spotted, dispatching reinforcements to Terminal S009. 04709_ Adv. Terrain Scan Processor destroyed. 04721_ Slammed into R-06 Scavenger. 04734_ K-01 Serf collects debris. 04734_ Microactuators destroyed. 04739_ Connecting with Terminal... 04739_ ALERT: Suspicious activity at Terminal S010. Dispatching Investigation squad. 04747_ K-01 Serf destroyed. 04753_ Microactuators destroyed. 04753_ Critical hit (Burn: +37). Map ----- +----------------------------------------------------+ | | | | | | | | | | | | | | | | | | | | | | | ??????????????????????????????????????????? | | ??????????????????????????????????????????? | | ??????????????????????????????????????????? | | ??????????????????????????????????????????? | | ??????????????????????????????????????????? | | ??????????????????????????????????????????? | | ??????????????????????????????????????????? | | ??????????????????????????????????????????? | | ??????????????????????????????????????????? | | ??????????????????????????????????????????? | | ????????????????###+####??????????????????? | | ????????????????? # ???????????????????? | | ??????????>?????? a ????????????????????? | | ?????????????????# #??????/??????????????? | | ????????##########@ # """ #???????????? | | ????????# + r "R ""??????????????? | | ????????# # # """ ""??????????????? | | ????????# """" #gg#?""" ""??????????????? | | ?????????????"" # #?? ??????????????? | | ??????????????"" # #????##?Y?????????????? | | ???????????????"s#s ######????????????????? | | ???????????????" + #????????????????? | | ???????????????" # #????????????????? | | ?????????????? ## ### #????????????????? | | ?????????????######+###? #????????????????? | | ?????????????# + #????????????????? | | ?????????????#Y"""""s # #????????????????? | | ?????????????# """""s " #????????????????? | | ?????????????# """"" ## #????????????????? | | ????????????## %#??#????????????????? | | ????????????# """"" #??????#+###????????? | | ????????????## """""g #????? ????????? | | ?????????????# """"" #???? ????????? | | ?????????????# #??? ??????????? | | ?????????????####+##/##?? #????????????? | | ??????????###???# ### #????????????? | | ??????????#""???# #????????????? | | ??????????#"Y"??# #????????????? | | ??????#####" "#?# #????????????? | +----------------------------------------------------+ Best States ------------- Heat Dissipation 34 Energy Generation 15 Energy Capacity 250 Matter Stores 300 Matter Capacity 300 Sight Range 18 Terrain Scan Density 210 Additional Mass Support 6 Armor Coverage 150 Melee Speed Boost 40 Evasion (%) 50 Core Analysis 6 Authchip Count 1 Item Schematics ----------------- Utility Shielding | -10/Materials | Hacked Weight Redist. System | -9/Materials | Hacked Grenade Launcher | -9/Materials | Hacked Mni. Grenade Launcher | -8/Materials | Scanalyzed Robot Schematics ------------------ None Fabricated ------------ Nothing Alien Tech Used ----------------- None Achievements -------------- None Challenges ------------ None Game ------ Seed PortableElectronDoomcannon Manual? 0 Play Time 01:11:32 Cumulative 94.2 hours Start 2024.11.12 @ 00:21:10 End 2024.11.12 @ 01:31:03 Sessions 1 Manual Loads 0 Difficulty Rogue Special Mode None Game No. 92 Rogue 92 Adventurer 0 Explorer 0 Win Type - Total 2 Types 2/0/0/0/0/0/0/0/0 Lore% 51 Gallery% 51 Achievement% 43 Wizard Run 0 Options --------- Layout 1 ASCII 0 Keyboard 1 Movement Arrows Keybinds 0 Fullscreen 2 Font 24/Smallcaps Map View 50x35 Zoom Use 0% Tactical HUD 1 Map Filters NONE Filters NONE Steam 1 RUN: 7e09397f-ef21-4032-8907-d93f8b7c2bb1